[Event "45th FIDE Olympiad 2024"]
[Site "Budapest"]
[Date "2024.09.11"]
[Round "1.150"]
[White "Oluka, Robert Mcligeyo"]
[Black "Peng, Li Min"]
[Result "1/2-1/2"]
[ECO "B53"]
[WhiteElo "1990"]
[BlackElo "2514"]
[Annotator "TA"]
[PlyCount "78"]
[EventDate "2024.09.05"]
[EventType "team-tourn"]
[EventCountry "HUN"]
[SourceTitle "playchess.com"]
[Source "ChessBase"]
[SourceQuality "1"]
[WhiteTeam "Kenya"]
[BlackTeam "Switzerland"]
[WhiteTeamCountry "KEN"]
[BlackTeamCountry "SUI"]
[TimeControl "40/5400+30:1800+30"]

{[%evp 20,78,0,0,0,0,0,-39,-18,-6,-13,-8,-4,-23,-16,-18,25,8,6,5,53,53,35,42,42,37,44,34,47,33,40,38,46,33,51,37,39,-46,-64,-56,-42,-209,-183,-193,-193,-200,-183,-200,-99,-97,0,0,0,0,0,0,0,0,0,0,0]} 1. e4 c5 2. Nf3 d6 3. d4 cxd4 4. Qxd4 Nf6 5. Nc3 Nc6 6. Bb5 Bd7 7. Bxc6 Bxc6 8. Bg5 e6 9. O-O-O Be7 10. Rhe1 O-O 11. e5 dxe5 12. Nxe5 Qc8 13. h4 Rd8 {Black is slightly better.} 14. Qf4 Qc7 15. Qc4 Rxd1+ 16. Nxd1 Rc8 17. Nxc6 (17. Bxf6 {simplifies} gxf6 18. Nxc6 Qxc6 19. Qxc6 Rxc6 20. c3) 17... bxc6 {[%cal Bb7c6,Bc6c5,Bc5c4][%mdl 32]} (17... Qxc6 {simplifies} 18. Qxc6 Rxc6 19. c3 Bd6) 18. Nc3 Qb7 19. Ne4 Nd5 (19... Qb5 $11 {deserves consideration.} 20. Qe2 Qd5) 20. Bxe7 $14 Qxe7 21. g3 c5 22. Nc3 Nb6 23. Qe4 c4 24. Qe5 h6 25. Rd1 Qb7 26. g4 Qf3 27. g5 hxg5 28. Qxg5 (28. hxg5 $14 Qxf2 29. a4) 28... Qxf2 $15 29. Rg1 g6 30. h5 $2 {[#]} (30. Rd1 $15) 30... Rc5 $1 $19 31. Qd8+ Kg7 32. h6+ Kh7 $1 33. Rd1 {[#] And now Qf8 would win.} Qe3+ (33... Kxh6 $2 34. Qh8+ Kg5 35. Ne4+ Kf5 36. Nxf2 $18) (33... Re5 $1 $19 {is more deadly.} 34. Qf8 Qf6) 34. Kb1 $17 Nd5 (34... Qxh6 $6 35. Ne4 Rf5 36. Nf6+ Kg7 37. Ne8+ Kh7 38. Nf6+ Kg7 39. Ne8+ Kh7 40. Nf6+ $11) ({Black should try} 34... Rf5 $1 $17 {aiming for ...Nd5.} 35. a4 Qc5 (35... Qxh6 36. Qb8 $15) (35... Kxh6 36. Qh8+ Kg5 37. Ne4+ Qxe4 38. Rg1+ $16)) 35. Ne4 $36 {[%mdl 2048] White has the initiative. The position is equal.} Qxe4 36. Qf8 {[%csl Gh6,LRc5,LRf7][%cal Rf8g7] Dancing on a razor blade.} Qe5 37. Qxf7+ (37. Qxc5 $2 Nc3+ (37... Kxh6 $2 38. Qf8+ Kh5 39. Rh1+ Kg4 40. Qxf7 $18) 38. bxc3 Qxc5 $19) 37... Kh8 $1 {Hoping for ...Rc7.} 38. Qf8+ (38. Qxg6 $2 Rc8 (38... Qf6 39. Qe8+ Kh7 40. Rg1 $11) 39. Rg1 Rb8 $19) 38... Kh7 {White must now prevent ...Rc7.} 39. Qf7+ (39. Qxc5 $2 {is the wrong capture.} Nc3+ (39... Kxh6 $2 {loses.} 40. Qf8+ Kh5 41. Rh1+ Kg4 42. Rg1+ $18) 40. bxc3 Qxc5 $19) 39... Kh8 $1 {Weighted Error Value: White=0.16 (very precise) /Black=0.17 (very precise) .  Loses game:     	White=1     	---        Mistake:       	White=1     	Black=3      Inaccurate:     	White=1     	Black=1      OK:         	White=13    	Black=10     Best:        	White=3     	Black=3      Strong:       	---       	Black=4} 1/2-1/2

[Event "45th FIDE Olympiad 2024"]
[Site "Budapest"]
[Date "2024.09.11"]
[Round "1.151"]
[White "Georgiadis, Nico"]
[Black "Wanasunia, Elvis Likoko"]
[Result "1-0"]
[ECO "D33"]
[WhiteElo "2510"]
[BlackElo "1942"]
[Annotator "TA"]
[PlyCount "55"]
[EventDate "2024.09.05"]
[EventType "team-tourn"]
[EventCountry "HUN"]
[SourceTitle "playchess.com"]
[Source "ChessBase"]
[SourceQuality "1"]
[WhiteTeam "Switzerland"]
[BlackTeam "Kenya"]
[WhiteTeamCountry "SUI"]
[BlackTeamCountry "KEN"]
[TimeControl "40/5400+30:1800+30"]

{[%evp 16,55,63,54,49,45,45,57,77,-10,68,38,32,36,89,94,93,84,87,86,92,102,95,94,130,132,134,152,178,172,320,335,361,343,335,181,411,405,564,570,585,570]} 1. d4 d5 2. c4 e6 3. Nf3 Nf6 4. g3 c5 5. cxd5 exd5 6. Nc3 Nc6 7. Bg2 h6 8. O-O Be6 9. b3 Rc8 10. Bb2 Be7 11. Rc1 b6 {White is slightly better.} 12. dxc5 ({Better is} 12. e3 $16) 12... Bxc5 ({Black should try} 12... d4 $1 $11 13. cxb6 (13. Na4 b5 $11) 13... dxc3 14. Qxd8+ Bxd8 15. bxa7 Ne4 (15... cxb2 16. Rxc6 Ra8 17. Ra6 $11) (15... Nxa7 16. Rxc3 Rxc3 17. Bxc3 $14) 16. Bxc3 Nxc3 17. Rxc3 Nxa7 18. Rxc8 Bxc8 (18... Nxc8 19. Nd4 $15)) 13. Nb5 O-O 14. a3 Qd7 ({Black should play} 14... Ne4 $14) 15. Bxf6 $16 gxf6 {[%cal Bg7f6,Bf6f5,Bf5g4][%mdl 32]} 16. b4 Be7 {[%cal Oc6b4]} 17. Nbd4 $36 {[%mdl 2048] White is really pushing.} Ne5 18. Qd2 Kg7 19. Qe3 {Nxe6+ would now be deadly.} Ng4 20. Qf4 f5 21. Bh3 {[#] Strongly threatening Nxe6+. White is more active.} Bd6 22. Qd2 Be7 (22... Rxc1 {might work better.} 23. Rxc1 Re8) 23. Nxe6+ $18 fxe6 24. Bxg4 fxg4 25. Qd4+ (25. Ne5 $142 Qe8 26. Rxc8 (26. Nxg4 Qh5 $18) 26... Qxc8 27. Nxg4) 25... e5 {[#]} (25... Bf6 26. Qxg4+ Kh7) 26. Nxe5 {[%cal Bf3e5,Be5d7,Bd7f8][%mdl 32]} (26. Qxe5+ $2 {is the wrong capture.} Bf6 27. Rxc8 Rxc8 $19 (27... Bxe5 $2 28. Rxf8 Bd6 29. Ne5 $19)) 26... Bf6 27. Nxd7 Bxd4 28. Nxf8 {Weighted Error Value: White=0.19 (very precise) /Black=0.57.  Mistake:       	White=2     	Black=4      Inaccurate:     	White=1     	Black=2      OK:         	White=8     	Black=6      Best:        	White=4     	---} 1-0

[Event "45th FIDE Olympiad 2024"]
[Site "Budapest"]
[Date "2024.09.11"]
[Round "1.152"]
[White "Mutuge, Ian"]
[Black "Kurmann, Oliver"]
[Result "0-1"]
[ECO "B30"]
[WhiteElo "1938"]
[BlackElo "2421"]
[Annotator "TA"]
[PlyCount "80"]
[EventDate "2024.09.05"]
[EventType "team-tourn"]
[EventCountry "HUN"]
[SourceTitle "playchess.com"]
[Source "ChessBase"]
[SourceQuality "1"]
[WhiteTeam "Kenya"]
[BlackTeam "Switzerland"]
[WhiteTeamCountry "KEN"]
[BlackTeamCountry "SUI"]
[TimeControl "40/5400+30:1800+30"]

{[%evp 9,80,-12,0,-14,-7,-16,-5,-24,-16,-21,-25,-40,-30,-42,-37,-62,-66,-64,-72,-78,-51,-78,-72,-79,-53,-69,-61,-61,-60,-79,-68,-64,-44,-52,-29,-37,-31,-22,-24,-31,-36,-28,0,0,0,0,101,-13,-9,-87,-95,-173,-185,-228,-196,-191,-184,-241,-231,-211,-192,-402,-402,-418,-415,-416,-408,-781,-745,-1041,-1102,-1566,-1053]} 1. e4 c5 2. Nf3 Nc6 3. Bb5 e6 4. c3 Qb6 5. Bd3 g6 6. O-O Bg7 7. Na3 Nge7 8. Bc2 {[%cal Oe4e5] The position is equal.} d5 9. d3 O-O 10. Qe1 h6 11. h3 e5 12. exd5 Nxd5 13. Nc4 {[%csl LRb6,LRe5]} Qc7 14. a4 Be6 15. Bd2 Rfe8 16. Qc1 Nf4 17. Bxf4 exf4 18. Re1 Rad8 19. Ncd2 b6 20. Re2 a6 {Black is more active.} 21. Qe1 b5 22. axb5 axb5 23. Bb3 Bd7 (23... Rxd3 $6 24. Bxe6 Rxe6 (24... fxe6 $2 25. Rxe6 Rxe6 26. Qxe6+ Kh7 27. Ra6 $18) 25. Rxe6 fxe6 26. Qxe6+ Kh7 27. Ra6 $16) 24. Ne4 {Excellent horsemanship.} Ne5 25. Nxe5 Rxe5 (25... Qxe5 26. Ra6 Qh5 27. f3 $16 (27. Rf6 $2 Rxe4 28. Bxf7+ Kh8 $19)) (25... Bxe5 {simplifies} 26. f3 Be6 27. Bxe6 Rxe6 28. Nf2 Rde8) 26. d4 cxd4 27. cxd4 Ree8 {[#]} (27... Rf5 $1 $11) 28. Rc1 (28. Ra6 $1 $16 {[%cal Ra6g6]} Kh8 (28... Bxd4 $2 29. Rxg6+ Kh8 30. Bxf7 $18) 29. Bxf7) 28... Qb8 $11 {Black wants to play ...f3.} 29. d5 (29. Nc5 $1 $11) 29... f3 $1 $36 {[%mdl 2048] Black is in control.} 30. gxf3 (30. Re3 $17 {was called for.}) 30... Qf4 $1 $19 {[%cal Og7d4] ...Bd4! is the strong threat.} (30... Bxh3 31. d6 $16) 31. Kg2 {[#]} Bxh3+ $1 {[%mdl 512]} 32. Kxh3 {[%cal Oe4f6]} Qxf3+ 33. Ng3 (33. Kh2 {was worth a try.} Re5 (33... Qxb3 34. Nf6+ Bxf6 35. Rxe8+ Kh7 36. Rxd8 $16) 34. Ng3 (34. Nc3 $2 Rh5+ 35. Kg1 Rh1#) 34... Rxe2 35. Qxe2 Qxb3 36. Rc5) 33... Rxe2 34. Qxe2 Qxb3 35. d6 $2 (35. Rc5) 35... Rxd6 ({Inferior is} 35... Bxb2 36. Rb1 $14) 36. Rc8+ Kh7 {[%cal Od6e6] Threatens to win with ...Re6!} 37. Kg2 Qd5+ (37... Bxb2 38. Qe8 Qd5+ 39. Ne4 $11) 38. Kh2 (38. Qe4 $142) 38... Re6 {Black is clearly winning.} 39. Qc2 Bd4 {Hoping for ...Qf3.} 40. Rc7 Rf6 {Weighted Error Value: White=0.72/Black=0.10 (very precise) .  Mistake:       	White=6     	Black=1      Inaccurate:     	White=2     	Black=3      OK:         	White=7     	Black=17     Best:        	White=1     	Black=1      Strong:       	---       	Black=2} 0-1

[Event "45th FIDE Olympiad 2024"]
[Site "Budapest"]
[Date "2024.09.11"]
[Round "1.153"]
[White "Thomas, Saah"]
[Black "Fier, Alexandr"]
[Result "0-1"]
[ECO "B23"]
[WhiteElo "1939"]
[BlackElo "2551"]
[Annotator "TA"]
[PlyCount "80"]
[EventDate "2024.09.05"]
[EventType "team-tourn"]
[EventCountry "HUN"]
[SourceTitle "playchess.com"]
[Source "ChessBase"]
[SourceQuality "1"]
[WhiteTeam "Liberia"]
[BlackTeam "Brazil"]
[WhiteTeamCountry "LBR"]
[BlackTeamCountry "BRA"]
[TimeControl "40/5400+30:1800+30"]

{[%evp 13,80,-50,-28,-82,-61,-74,-24,-33,-25,-37,18,-6,-2,-1,-2,-32,-22,-29,-36,-35,-19,-50,-52,-121,-115,-131,-118,-339,-308,-281,-233,-240,-230,-239,-239,-241,-225,-215,-227,-214,-206,-291,-275,-626,-374,-711,-712,-1742,-1696,-1928,-1962,-1627,-1583,-4986,-3312,-29969,-29973,-6347,-6037,-29988,-29989,-29989,-29990,-29990,-29991,-29991,-29992,-29992,-29993]} 1. e4 c5 2. Nc3 Nc6 3. f4 g6 4. Nf3 Bg7 5. Bc4 e6 6. O-O Nge7 7. Qe1 O-O 8. e5 (8. Bb3 $11 {remains equal.}) 8... d5 9. Be2 a6 (9... Nf5 $17) 10. d3 {Black has an edge.} b5 11. Nd1 Nb4 ({Black should play} 11... f6 $15) 12. Qd2 d4 13. a3 Nbd5 14. Ng5 Nf5 15. Ne4 {[%cal Oe2f3]} Qb6 16. Qe1 h5 17. g4 hxg4 18. Bxg4 (18. Ndf2 $1 $15) 18... Bb7 $17 19. Bxf5 exf5 20. Ng5 {Loses the game.} (20. Nd6 $17) 20... f6 21. exf6 Nxf6 ({Resist} 21... Qxf6 22. Qe6+ Qxe6 23. Nxe6 $19) 22. Qe6+ Qxe6 23. Nxe6 {[#]} Rfe8 24. Nxc5 Bd5 {White is weak on the light squares} 25. Bd2 Re2 {[%mdl 1024] Black has strong compensation.} 26. Rf2 Rae8 27. h3 {Prevents Ng4} (27. c4 $142 bxc4 28. dxc4 Bxc4 29. Rc1 Re1+ 30. Bxe1 Rxe1+ 31. Kg2 Bd5+ (31... Be2 32. Rxe2 Rxe2+ 33. Kf1 $17) 32. Kh3) 27... Nh5 $19 {[%cal Oe2d2] [#] Strongly threatening ...Rxd2!} 28. b3 $2 (28. Nxa6 Rxd2 (28... Re1+ 29. Bxe1 Rxe1+ 30. Rf1 $11) 29. Rxd2 Re1+ 30. Kf2) 28... Bf6 29. c4 $2 (29. Ne4 R2xe4 30. dxe4 fxe4 31. c3) 29... dxc3 30. Nxc3 Rxf2 31. Kxf2 Bd4+ 32. Be3 Bxe3+ {A strong pair of Bishops.} 33. Ke1 Bxc5+ 34. Kd1 Bxb3+ 35. Kc1 Bd4 36. Kb2 Ba4 {Black mates.} 37. Rc1 Nxf4 38. Kb1 Nxd3 39. Nxa4 Nxc1 40. Kxc1 bxa4 {Weighted Error Value: White=1.15/Black=0.18 (very precise) .  Loses game:     	White=1     	---        Mistake:       	White=4     	Black=2      Inaccurate:     	White=3     	Black=1      OK:         	White=8     	Black=6      Best:        	White=1     	Black=3} 0-1

[Event "45th FIDE Olympiad 2024"]
[Site "Budapest"]
[Date "2024.09.11"]
[Round "1.154"]
[White "Quintiliano, Renato R."]
[Black "Barcon, Harmon"]
[Result "1-0"]
[ECO "E09"]
[WhiteElo "2499"]
[BlackElo "1968"]
[Annotator "TA"]
[PlyCount "99"]
[EventDate "2024.09.05"]
[EventType "team-tourn"]
[EventCountry "HUN"]
[SourceTitle "playchess.com"]
[Source "ChessBase"]
[SourceQuality "1"]
[WhiteTeam "Brazil"]
[BlackTeam "Liberia"]
[WhiteTeamCountry "BRA"]
[BlackTeamCountry "LBR"]
[TimeControl "40/5400+30:1800+30"]

{[%evp 16,99,32,10,43,54,43,45,54,63,88,86,82,87,97,90,95,91,95,83,110,93,93,87,108,64,133,127,128,125,126,132,132,132,127,132,138,133,125,90,90,101,127,134,127,143,141,116,95,102,99,97,95,92,93,91,150,70,72,60,68,49,72,41,52,39,89,66,81,48,125,132,141,134,134,132,355,357,466,464,604,604,658,658,643,627]} 1. d4 Nf6 2. c4 e6 3. g3 d5 4. Bg2 Be7 5. Nf3 O-O 6. O-O c6 7. Nbd2 Nbd7 {[%cal Bb8d7,Bd7f6,Bf6h5][%mdl 32]} 8. Qc2 Re8 9. Rd1 Bf8 10. e4 dxe4 11. Nxe4 Nxe4 {White is slightly better.} 12. Qxe4 Nf6 13. Qc2 h6 14. Bf4 Bd6 15. Ne5 Nh5 16. Be3 Qc7 17. Nd3 Qd8 18. Qe2 Nf6 19. Ne5 Bd7 20. g4 {g5 is the strong threat.} Qc7 ({Black should try} 20... Nh7 $1 $14) 21. h4 $16 Red8 ({Don't go for} 21... Bxe5 $2 22. dxe5 Nh7 (22... Qxe5 $2 {perishes.} 23. g5 $18) 23. Rd6 $18) 22. g5 hxg5 23. hxg5 Nh7 24. Bf4 Be8 25. c5 Bxe5 26. Bxe5 Qe7 {Black is weak on the dark squares} 27. f4 {Rd3 would now be deadly.} f6 28. gxf6 gxf6 29. Bd6 Rxd6 30. cxd6 Qxd6 31. Rd3 Bg6 32. Be4 (32. Rg3 {is more complex.} Nf8 33. Qe3 Kf7 34. Bf3) 32... f5 33. Bg2 Rd8 34. Qe5 Kf7 35. Rb3 b6 (35... Qd7 $142) 36. Rc1 (36. Rd1 $16) 36... Qxd4+ $14 37. Qxd4 Rxd4 38. Rxc6 Kf6 39. Rc7 Rxf4 40. Rxa7 {[%cal Oa7a6,Bc7a7,Ba7a3,Ba3c3,Bc3c6][%mdl 32]} Rg4 (40... Ng5 $14) 41. Rxb6 {White has more active pieces.} Ng5 42. Ra3 f4 {[#]} (42... Rd4 $14) 43. Kf1 $1 $16 Bf5 44. Rc3 Ne4 45. Rcc6 {aiming for Bxe4.} Nd2+ {Loses the game.} (45... Ng5 $16 {was necessary.}) 46. Kf2 $18 Rg3 47. Rb4 {Inhibits Be4. White is clearly winning.} Ke5 48. Rc5+ Kd6 {[#]} 49. Rxf5 {[%mdl 512]} exf5 50. Rd4+ {Weighted Error Value: White=0.12 (very precise) /Black=0.29 (precise) .  Loses game:     	---       	Black=1      Mistake:       	White=1     	Black=4      Inaccurate:     	White=3     	Black=3      OK:         	White=12    	Black=9      Best:        	White=1     	Black=7      Strong:       	White=1     	---} 1-0

[Event "45th FIDE Olympiad 2024"]
[Site "Budapest"]
[Date "2024.09.11"]
[Round "1.155"]
[White "David, Leroy Debblay"]
[Black "Di Berardino, Diego Rafael"]
[Result "0-1"]
[ECO "E11"]
[WhiteElo "1904"]
[BlackElo "2472"]
[Annotator "TA"]
[PlyCount "105"]
[EventDate "2024.09.05"]
[EventType "team-tourn"]
[EventCountry "HUN"]
[SourceTitle "playchess.com"]
[Source "ChessBase"]
[SourceQuality "1"]
[WhiteTeam "Liberia"]
[BlackTeam "Brazil"]
[WhiteTeamCountry "LBR"]
[BlackTeamCountry "BRA"]
[TimeControl "40/5400+30:1800+30"]

{[%evp 10,105,25,16,39,32,33,23,23,28,23,16,21,22,32,30,31,25,27,24,30,18,31,33,25,13,42,31,29,-18,0,-41,-46,-45,0,0,-7,0,0,-47,-42,-84,-54,-128,-96,-310,-299,-417,-405,-609,-593,-1155,-1148,-1133,-1105,-1100,-1093,-998,-908,-876,-845,-935,-931,-920,-925,-920,-927,-918,-916,-1007,-583,-589,-597,-638,-569,-588,-582,-596,-592,-603,-586,-676,-664,-718,-719,-810,-810,-804,-802,-886,-883,-969,-962,-976,-981,-990,-977,-964]} 1. d4 Nf6 2. c4 e6 3. Nf3 Bb4+ 4. Bd2 a5 5. a3 Bxd2+ 6. Qxd2 b6 7. Nc3 Bb7 8. e3 O-O {White has an edge.} 9. Bd3 d5 10. cxd5 exd5 11. O-O c5 12. Rac1 Nbd7 13. Rfd1 Qe7 14. Qe2 Rfd8 15. Bb5 Qe6 16. Na4 {Strongly threatening Bxd7.} Rac8 17. Rc2 Ne4 18. Bxd7 Rxd7 19. Ne5 (19. dxc5 $142 bxc5 20. Rdc1) 19... Rdc7 20. Rdc1 c4 21. Nc3 Nd6 (21... f6 $5 22. Nf3 $8 Nxc3 23. bxc3 Bc6 $15) 22. a4 $1 f6 23. Nf3 Bc6 24. Qd2 (24. Nd2 $11 {is superior.}) 24... Be8 $15 25. Re1 Bh5 $36 {[%mdl 2048] Black fights for an advantage.} 26. Ne2 (26. Qe2 $15) 26... Ne4 {Black is more active.} 27. Qc1 {[#] This costs White the game.} (27. Qd1 $17) 27... Bxf3 $1 $19 28. gxf3 {[%cal Oe2f4] And now Nf4! would win.} Ng5 29. Nf4 {Inhibits Qh3.} (29. Ng3 $142 Nxf3+ 30. Kg2 Nxe1+ 31. Qxe1) 29... Nxf3+ {Black is clearly winning.} 30. Kf1 Qg4 {[%cal Rf3h2]} ({Not} 30... Nxh2+ 31. Kg2 Qd6 32. e4 $11 (32. Kxh2 g5 $17)) 31. Rd1 Nxh2+ 32. Ke1 Nf3+ 33. Kf1 Rd7 34. b3 Re8 35. bxc4 Nh2+ 36. Ke1 Qxf4 37. cxd5 Ng4 38. Re2 Qf3 {[%cal Og4f2] [#] Hoping for ...Nxf2!} 39. Qc6 Qxd5 40. Qxd5+ Rxd5 41. e4 Rd6 42. f3 Nh6 43. Kf2 Rc8 44. d5 g5 45. Rb1 Nf7 46. Reb2 Rc4 47. Rxb6 Rxb6 48. Rxb6 {KRN-KR} Kg7 49. Ke3 Rxa4 50. d6 Ne5 {( -> ...Nc4+)} 51. Rb7+ Kg6 52. Ra7 Nc4+ 53. Kd4 {Weighted Error Value: White=0.45/Black=0.30.  Loses game:     	White=1     	---        Mistake:       	White=4     	---        Inaccurate:     	White=4     	Black=3      OK:         	White=11    	Black=11     Best:        	---       	Black=2      Strong:       	White=1     	Black=1} 0-1

[Event "45th FIDE Olympiad 2024"]
[Site "Budapest"]
[Date "2024.09.11"]
[Round "1.156"]
[White "Do Valle Cardoso, Lucas"]
[Black "Obediah, Saah"]
[Result "1-0"]
[ECO "B12"]
[WhiteElo "2364"]
[BlackElo "1976"]
[Annotator "ChessBase"]
[PlyCount "59"]
[EventDate "2024.09.05"]
[EventType "team-tourn"]
[EventCountry "HUN"]
[SourceTitle "playchess.com"]
[Source "ChessBase"]
[SourceQuality "1"]
[WhiteTeam "Brazil"]
[BlackTeam "Liberia"]
[WhiteTeamCountry "BRA"]
[BlackTeamCountry "LBR"]
[TimeControl "40/5400+30:1800+30"]

1. e4 c6 2. d4 d5 3. e5 c5 4. dxc5 Nc6 5. Nf3 Bg4 6. c3 e6 7. Be3 Bxf3 8. Qxf3 Nxe5 9. Bb5+ Nc6 10. O-O Nf6 11. Rd1 a6 12. Ba4 Qc7 13. Nd2 Be7 14. b4 O-O 15. Bc2 Rfd8 16. Nb3 Qe5 17. Rac1 Qh5 18. Qxh5 Nxh5 19. a4 e5 20. b5 axb5 21. axb5 Na5 22. c6 Nc4 23. c7 Rd7 24. b6 g6 25. Ra1 Rc8 26. Nc5 Nxe3 27. Nxd7 Nxd1 28. Bxd1 Nf4 29. Nxe5 Bd6 30. Nc6 1-0

[Event "45th FIDE Olympiad 2024"]
[Site "Budapest"]
[Date "2024.09.11"]
[Round "1.157"]
[White "Blomqvist, Erik"]
[Black "Ndahangwapo, Heskiel"]
[Result "1-0"]
[ECO "B41"]
[WhiteElo "2491"]
[BlackElo "2011"]
[Annotator "TA"]
[PlyCount "47"]
[EventDate "2024.09.05"]
[EventType "team-tourn"]
[EventCountry "HUN"]
[SourceTitle "playchess.com"]
[Source "ChessBase"]
[SourceQuality "1"]
[WhiteTeam "Sweden"]
[BlackTeam "Namibia"]
[WhiteTeamCountry "SWE"]
[BlackTeamCountry "NAM"]
[TimeControl "40/5400+30:1800+30"]

{[%evp 15,47,41,67,76,118,81,317,337,316,315,412,407,837,826,754,583,1338,1342,1230,1089,1047,671,1174,1166,1133,1104,1093,1044,1014,986,1291,1319,1318,1267]} 1. e4 c5 2. Nf3 e6 3. d4 cxd4 4. Nxd4 a6 5. c4 Nf6 6. Nc3 Qc7 7. a3 Nc6 8. Be3 Ne5 {[%cal Of6g4]} 9. Be2 h5 10. h3 {Inhibits Neg4. Black must now prevent f4.} Nxc4 $2 {[#]} (10... Ng6 $16) 11. Bxc4 $18 {White has a decisive advantage.} Qxc4 12. Rc1 Qc7 13. Ncb5 {[%cal Bc3b5,Bb5c7,Bc7e6,Be6f4][%mdl 32]} Qb8 (13... Qa5+ $142 14. b4 Qxb5) 14. Nc7+ {White is clearly winning.} Kd8 {[%cal Be8d8,Bd8e7,Be7f7,Bf7g8][%mdl 32]} 15. O-O {Black is weak on the dark squares} Ra7 {[#]} 16. Ndxe6+ $1 {[%mdl 512]} fxe6 17. Nxe6+ Ke7 18. Nf4 Rh6 19. e5 Qxe5 20. Rxc8 Kf7 21. Qb3+ d5 22. Bxa7 Qxf4 23. Qxb7+ Kg8 24. Be3 {White took control after the opening.   Weighted Error Value: White=1.27/Black=1.06.  Loses game:     	---       	Black=1      Mistake:       	---       	Black=1      Inaccurate:     	---       	Black=2      OK:         	White=2     	---        Best:        	White=2     	Black=1} 1-0

[Event "45th FIDE Olympiad 2024"]
[Site "Budapest"]
[Date "2024.09.11"]
[Round "1.158"]
[White "Eichab, Charles"]
[Black "Hillarp Persson, Tiger"]
[Result "0-1"]
[ECO "A21"]
[WhiteElo "2013"]
[BlackElo "2457"]
[Annotator "TA"]
[PlyCount "58"]
[EventDate "2024.09.05"]
[EventType "team-tourn"]
[EventCountry "HUN"]
[SourceTitle "playchess.com"]
[Source "ChessBase"]
[SourceQuality "1"]
[WhiteTeam "Namibia"]
[BlackTeam "Sweden"]
[WhiteTeamCountry "NAM"]
[BlackTeamCountry "SWE"]
[TimeControl "40/5400+30:1800+30"]

{[%evp 14,58,0,8,14,-4,0,0,-2,-34,-25,-47,-47,-43,-47,-54,-54,-91,-79,-181,-182,-208,-215,-213,-148,-233,-200,-202,-208,-202,-204,-208,-214,-214,-208,-212,-201,-246,-209,-657,-608,-2286,-2268,-29998,-29997,-29997,-29998]} 1. c4 e5 2. Nc3 Bb4 3. g3 Bxc3 4. bxc3 d6 5. Bg2 Nc6 6. d3 Nge7 7. Nf3 O-O 8. O-O h6 9. Ne1 Be6 10. f4 Qd7 {The position is equal.} 11. Nf3 Bh3 12. Bd2 Bxg2 13. Kxg2 Rae8 14. Rf2 Ng6 15. Qc1 f5 {Black is more active.} 16. e3 (16. Rb1 $17 {keeps fighting.}) 16... e4 $19 17. Ne1 exd3 18. Qb1 Na5 19. Qxd3 (19. Qb5 $17 {might work better.} Qc6+ 20. Qxc6 Nxc6 (20... bxc6 21. c5 $17) 21. Nxd3) 19... c5 20. Nc2 Re4 21. Na3 Ne7 22. Rd1 Qe6 23. Bc1 Rd8 (23... Nxc4 24. Nxc4 Rxc4 25. Qxd6 Qe4+ 26. Kh3 $11) 24. h3 Kh7 25. Kf3 Nxc4 26. g4 $2 (26. Nxc4 Rxc4 (26... Qxc4 $2 27. Qxc4 Rxc4 28. Bd2 $19) 27. Kg2) 26... fxg4+ 27. hxg4 {[#]} Ne5+ $1 {[%mdl 512] Excellent horsemanship.} 28. Kxe4 (28. Ke2 Qxg4+) 28... Qg6+ 29. f5 Qxg4+ {White did not feel at home in the position after the opening.   Weighted Error Value: White=1.04/Black=0.10 (very precise) .  Mistake:       	White=3     	---        Inaccurate:     	White=3     	Black=1      OK:         	White=5     	Black=8      Best:        	---       	Black=1} 0-1